Cogmind - Beta 15 @@@ ROGUE MODE // 2025.08.06 @ 23:35:27 Player: Inverisimilidude Result: Destroyed by S-27 Virus with Autogun Performance ------------- Evolutions (4) 2000 Regions Visited (11) 2200 Robots Destroyed (78) 390 Value Destroyed (2619) 2619 Prototype IDs (12) 240 Alien Tech Used (0) 0 Bonus (1198) 1198 TOTAL SCORE: 8647 Bonus ------- High Alert Combat Kills 6 Follower Combat Kills 241 Entered Garrisons 200 Registered with UFD 300 Met Optimus in HQ 500 Friendly Fire -49 Cogmind --------- Core Integrity 0/850 Matter 90/300 Energy 98/100 System Corruption 7% Temperature Cool (0) Movement Core (50) Location -6/Garrison Parts ------- > --- POWER (1) -------- (None) > --- PROPULSION (5) --- (None) > --- UTILITY (6) ------ (None) > --- WEAPON (3) ------- (None) > --- INVENTORY (5) ---- VTOL Module Advanced Terrain Scanner Heavy Linear Accelerator DRS Beacon (Ready) Peak State ------------ > --- POWER ------------ Light Nuclear Core > --- PROPULSION ------- Light Treads Light Treads Armored Treads Armored Wheel Armored Wheel > --- UTILITY ---------- Huge Storage Unit Improved Signal Interpreter Seismic Detector Improved Reaction Control System Improved Medium Armor Plating > --- WEAPON ----------- Mini Assault Cannon Heavy Linear Accelerator > --- INVENTORY -------- VTOL Module Improved Flight Unit Improved Flight Unit Improved Flight Unit Cesium-ion Thruster Improved VTOL Module Improved VTOL Module Improved Heat Sink Compact Matter Pod Advanced Weight Redist. System Advanced Sensor Array Experimental Sensor Array Improved Signal Interpreter Advanced Terrain Scanner Advanced ECM Suite Hardened Medium Armor Plating Hacking Suite Flak Gun Heavy Flak Cannon Heavy Linear Accelerator Rocket Launcher Improved Datajack Axe DRS Beacon [Rating: 57] Favorites ----------- Power Nuclear Core Engine Ion Engine Power Core Nuclear Core Propulsion Light Treads Treads Light Treads Leg Aluminum Leg Wheel Armored Wheel Flight Unit VTOL Module Utility Huge Storage Unit Device Experimental Sensor Array Storage Huge Storage Unit Processor Improved Signal Interpreter Protection Hardened Medium Armor Plating Weapon Improved Light Cannon Energy Gun Beam Rifle Ballistic Gun Autogun Ballistic Cannon Improved Light Cannon Launcher Rocket Launcher Special Weapon Mining Laser Slashing Weapon Mining Claw Special Melee Weapon Improved Datajack Build | -11 -10 -9 -9 -8 -8 -8 -8 -6 -6 -6 -6 ------- Run | Yrd Mat Mat Min Mat Sto Rec Scr Fac Was Fac Gar Slots Evolved 8 | . . 2 . 2 . . . 4 . . . Power . | . . . . . . . . . . . . Propulsion 3 | . . 1 . 1 . . . 1 . . . Utility 4 | . . 1 . 1 . . . 2 . . . Weapon 1 | . . . . . . . . 1 . . . Parts Attached 73 | 7 2 11 8 16 11 1 3 6 1 1 6 Power 10 | 1 2 2 1 2 . . 2 . . . . Engine 7 | 1 2 2 1 1 . . . . . . . Core 3 | . . . . 1 . . 2 . . . . Reactor . | . . . . . . . . . . . . Propulsion 17 | 2 . 3 1 6 2 1 . 1 . . 1 Treads 6 | . . 2 . 2 1 . . 1 . . . Leg 3 | . . 1 . 2 . . . . . . . Wheel 5 | 2 . . 1 . 1 1 . . . . . Hover . | . . . . . . . . . . . . Flight 3 | . . . . 2 . . . . . . 1 Utility 21 | 2 . 4 2 3 3 . . 3 . 1 3 Device 7 | 1 . . 2 1 . . . 2 . . 1 Storage 4 | 1 . 2 . . . . . . . . 1 Processor 3 | . . 1 . 1 . . . 1 . . . Hackware . | . . . . . . . . . . . . Protection 7 | . . 1 . 1 3 . . . . 1 1 Artifact . | . . . . . . . . . . . . Weapon 25 | 2 . 2 4 5 6 . 1 2 1 . 2 Energy Gun 3 | 1 . 1 . 1 . . . . . . . Energy Cannon . | . . . . . . . . . . . . Ballistic Gun 12 | 1 . . 2 3 3 . . 2 1 . . Ballistic Cannon 4 | . . . . 1 1 . . . . . 2 Launcher 1 | . . . 1 . . . . . . . . Special Weapon 1 | . . . . . . . 1 . . . . Impact Weapon . | . . . . . . . . . . . . Slashing Weapon 2 | . . . 1 . 1 . . . . . . Piercing Weapon . | . . . . . . . . . . . . Special Melee Weapon 2 | . . 1 . . 1 . . . . . . Unidentified Prototypes 4 | . . 1 1 2 . . . . . . . Parts Lost 13 | . . 1 2 . 2 . . . . . 8 Power 2 | . . . . . . . . . . . 2 Propulsion 5 | . . 1 . . 1 . . . . . 3 Utility 5 | . . . 1 . 1 . . . . . 3 Weapon 1 | . . . 1 . . . . . . . . Highest Loss Streak 3 | . . 1 1 . 1 . . . . . 3 To Critical Strikes . | . . . . . . . . . . . . Average Backups 21 | 3 7 11 22 24 24 24 23 22 23 24 17 Power . | . 1 1 1 1 1 1 1 1 1 1 . Propulsion 7 | 1 3 3 8 9 7 7 6 7 7 7 5 Utility 6 | . . 1 4 5 7 7 8 8 8 9 7 Weapon 6 | . 1 5 8 7 7 7 7 5 6 5 4 Tool/Special . | . . . . . . . . . . . . Unused Backups 28 | . . 1 . 7 2 2 . . . 1 15 Power 1 | . . 1 . . . . . . . . . Propulsion 14 | . . . . 6 2 1 . . . . 5 Utility 7 | . . . . 1 . . . . . . 6 Weapon 6 | . . . . . . 1 . . . 1 4 Tool/Special . | . . . . . . . . . . . . Average Slot Usage (%) 93 | . 100 97 99 99 99 96 81 94 100 100 65 Engine 4 | . 14 10 11 7 . . . . . . . Core 4 | . . . . 1 9 9 9 6 6 6 3 Treads 14 | . . 8 11 13 18 18 18 18 20 20 13 Leg 5 | . . 11 11 13 9 6 . . . . . Wheel 12 | . 28 13 11 9 8 9 18 13 13 13 9 Device 12 | . 14 10 9 13 9 9 17 15 20 19 8 Storage 9 | . 14 11 11 9 9 9 9 6 6 6 5 Processor 9 | . . 10 11 9 9 9 9 12 13 13 5 Protection 2 | . . . . 4 9 9 . . . . 4 Energy Gun 1 | . 14 9 . 8 . . . . . . . Ballistic Gun 8 | . 14 11 15 8 6 8 . 12 13 13 5 Ballistic Cannon 2 | . . . . . 7 8 . 5 6 6 5 Peak Build Rating 57 | 7 7 14 25 28 32 37 33 53 53 53 57 Average Rating 29 | 5 7 12 19 24 29 35 31 48 52 52 36 On Entrance 27 | . 7 7 14 17 27 31 31 32 53 53 53 Naked Turns 115 | . . . . . . . . . . . 115 Heaviest Build 128 | 13 15 95 97 98 103 103 96 101 101 108 128 Greatest Support 60 | 32 32 20 16 40 16 24 24 24 24 24 60 Greatest Overweight (x) 10 | . . 5 6 6 8 8 3 4 4 4 10 Average Overweight (x) 4 | . . 3 5 5 7 7 3 3 4 4 1 Largest Inventory Capacity 25 | 8 8 25 25 25 25 25 25 25 25 25 25 Average Capacity 23 | 7 8 20 25 25 25 25 25 25 25 25 19 Most Carried 25 | 5 8 14 25 25 25 25 25 25 25 25 25 Average Carried 22 | 3 7 11 22 24 24 24 23 23 24 24 19 Final Capacity 25 | 8 8 25 25 25 25 25 25 25 25 25 5 Final Carried 25 | 5 8 14 25 25 25 23 25 24 25 25 5 Class Distribution -------------------- 38% | Mutant 28% | Commander-Mutant 11% | Scavenger-Mutant 11% | Commander-Skirmisher 4% | Scavenger-Skirmisher Dominant Class ---------------- Mutant | -10/Materials Mutant | -9/Materials Mutant | -9/Mines Scavenger-Mutant | -8/Materials Mutant | -8/Storage Commander-Mutant | -8/Recycling Commander-Mutant | -8/Scraptown Commander-Skirmisher | -6/Factory Commander-Skirmisher | -6/Waste Skirmisher | -6/Factory Tank | -6/Garrison Resources | -11 -10 -9 -9 -8 -8 -8 -8 -6 -6 -6 -6 ----------- Run | Yrd Mat Mat Min Mat Sto Rec Scr Fac Was Fac Gar Matter Collected 2740 | 238 115 67 534 491 477 228 86 63 151 52 238 Remotely . | . . . . . . . . . . . . Salvage Created 2755 | 23 215 160 533 486 530 314 . 69 78 72 275 Parts 165 | 5 7 15 32 40 34 9 . 3 1 2 17 Haulers Intercepted 3 | . . . . 2 1 . . . . . . Recyclers Shooed 2 | 1 . . . 1 . . . . . . . Parts Field Recycled . | . . . . . . . . . . . . Retrieved Matter . | . . . . . . . . . . . . Parts Self-Destructed . | . . . . . . . . . . . . Prevented . | . . . . . . . . . . . . Kills | -11 -10 -9 -9 -8 -8 -8 -8 -6 -6 -6 -6 ------- Run | Yrd Mat Mat Min Mat Sto Rec Scr Fac Was Fac Gar Combat Hostiles Destroyed 61 | . 5 3 13 12 9 4 . . . 2 13 Melee 2 | . . . . . . . . . . . 2 Guns 34 | . 5 3 13 7 3 . . . . 1 2 Cannons 17 | . . . . . 6 4 . . . 1 6 AOE 8 | . . . . 5 . . . . . . 3 Classes Destroyed 14 | 1 1 1 2 4 1 . . 1 . . 3 Worker 3 | . . . . 2 1 . . . . . . Builder 1 | . . . . . 1 . . . . . . Tunneler 2 | 1 . . 1 . . . . . . . . Hauler 3 | . . . . 2 1 . . . . . . Recycler 4 | . . . 2 . 1 1 . . . . . Operator 1 | . . . . 1 . . . . . . . Watcher 3 | . . . . . . . . 3 . . . Swarmer 19 | . . . 5 6 . . . . . . 8 Grunt 20 | . 5 1 8 2 2 2 . . . . . Brawler 1 | . . . . . . . . . . . 1 Duelist 1 | . . . . . . . . . . . 1 Sentry 14 | . . 2 . 3 5 2 . . . . 2 Hunter 5 | . . . . 1 2 . . . . 2 . Programmer 1 | . . . . . . . . . . . 1 Best Kill Streak 9 | 1 3 3 4 4 4 2 . 1 . 2 9 Combat Bots Only 9 | . 3 3 4 3 3 2 . . . 2 9 Max Kills in Single Turn 4 | 1 1 2 2 4 1 1 . 1 . 1 3 Gunslinging 1 | . . 1 1 . . . . . . . . Exploded 3 | . . . . 3 . . . . . . 3 Melee 1 | . . . . . . . . . . . 1 Uniques/NPCs Destroyed . | . . . . . . . . . . . . Combat | -11 -10 -9 -9 -8 -8 -8 -8 -6 -6 -6 -6 -------- Run | Yrd Mat Mat Min Mat Sto Rec Scr Fac Was Fac Gar Hostile Shots Fired 408 | . 23 26 46 40 42 19 . . . 15 197 Missed 129 | . 3 11 9 13 10 6 . . . 2 75 Hits 279 | . 20 15 37 27 32 13 . . . 13 122 Melee 1 | . . . . . . 1 . . . . . Projectile 278 | . 20 15 37 27 32 12 . . . 13 122 Critical Strikes 8 | . . 1 1 . 1 2 . . . 1 2 Damage Taken 4042 | . 217 198 441 345 505 255 . . . 250 1831 Core 1109 | . 41 23 73 41 47 34 . . . . 850 Absorbed by Shields 79 | . . . . . . . . . . 8 71 Core Remaining (%) 84 | 100 83 . 76 . . . 77 . . . . Volleys Fired 199 | 3 18 16 24 45 37 17 . 8 1 4 26 Largest 3 | 2 2 2 2 2 2 2 . 3 3 3 3 Hottest 110 | 70 70 70 46 89 56 56 . 81 81 81 110 Shots Fired 409 | 6 36 32 48 85 66 37 . 24 3 12 60 Gun 292 | 6 36 32 48 78 29 19 . 16 2 8 18 Cannon 102 | . . . . . 37 18 . 8 1 4 34 Launcher 15 | . . . . 7 . . . . . . 8 Special . | . . . . . . . . . . . . Kinetic 317 | 3 18 16 48 38 66 37 . 24 3 12 52 Thermal 77 | 3 18 16 . 40 . . . . . . . Explosive 15 | . . . . 7 . . . . . . 8 Electromagnetic . | . . . . . . . . . . . . Robot Hit Streak 14 | 5 11 10 8 6 6 14 . 5 6 6 9 Robot Miss Streak 6 | 1 2 3 5 6 3 2 . 2 1 1 4 Penetration Max . | . . . . . . . . . . . . Secondary Targets 2 | . . 1 1 . . . . . . . . Max Gunslinging Chain 1 | . . 1 1 . . . . . . . . Shots Hit Robots 275 | 5 25 22 39 47 50 31 . 12 2 8 34 Core Hits 139 | 2 10 8 26 27 24 11 . 5 1 5 20 Critical Kills 1 | . . . 1 . . . . . . . . Critical Parts Destroyed 2 | . . . 1 . . 1 . . . . . Critical Strikes 9 | . 1 . 2 1 2 2 . 1 . . . Burn 2 | . 1 . . 1 . . . . . . . Destroy 3 | . . . 2 . . 1 . . . . . Blast 4 | . . . . . 2 1 . 1 . . . Melee Attacks 27 | . . . 5 1 4 . . . . . 17 Impact . | . . . . . . . . . . . . Slashing 26 | . . . 5 1 3 . . . . . 17 Piercing . | . . . . . . . . . . . . Sneak Attacks 6 | . . . 3 . 3 . . . . . . Combat Hostiles . | . . . . . . . . . . . . Follow-up Attacks . | . . . . . . . . . . . . Damage Inflicted 5872 | 62 309 271 698 980 1003 536 . 212 49 109 1643 Guns 2810 | 62 309 271 525 711 297 200 . 148 22 75 190 Cannons 1920 | . . . . . 550 336 . 64 27 34 909 Explosions 711 | . . . . 269 . . . . . . 442 Melee 410 | . . . 164 . 156 . . . . . 90 Ramming 21 | . . . 9 . . . . . . . 12 Kinetic 4097 | 37 157 148 525 378 847 536 . 212 49 109 1099 Thermal 633 | 25 152 123 . 333 . . . . . . . Explosive 711 | . . . . 269 . . . . . . 442 Electromagnetic . | . . . . . . . . . . . . Impact . | . . . . . . . . . . . . Slashing 410 | . . . 164 . 156 . . . . . 90 Piercing . | . . . . . . . . . . . . Highest Corruption 7 | . . . . . 2 2 2 . . . 7 Average Corruption 2 | . . . . . 2 2 2 . . . 7 Corruption Purged . | . . . . . . . . . . . . Corruption Blocked . | . . . . . . . . . . . . Effects 81 | . . . . . 8 26 30 . . . 17 Message Errors 16 | . . . . . 3 3 6 . . . 4 Matter Fused 21 | . . . . . . 10 7 . . . 4 Heat Flow Errors 8 | . . . . . 1 3 1 . . . 3 Energy Discharges 9 | . . . . . . 2 5 . . . 2 Parts Rejected 1 | . . . . . . . . . . . 1 Parts Fused 2 | . . . . . . 1 1 . . . . Data Loss (minor) 14 | . . . . . 4 3 7 . . . . Data Loss (major) 5 | . . . . . . 1 2 . . . 2 Misfires 3 | . . . . . . 3 . . . . . Alerts 1 | . . . . . . . 1 . . . . Weapon Failures 1 | . . . . . . . . . . . 1 Overload Shots . | . . . . . . . . . . . . Overflow Damage 232 | . . . 6 . . 8 . 18 . . 200 Projectiles 198 | . . . . . . 8 . 18 . . 172 Explosions 19 | . . . . . . . . . . . 19 Melee 15 | . . . 6 . . . . . . . 9 Knockbacks 9 | . . . . . 2 4 . . . . 3 Impact . | . . . . . . . . . . . . Kinetic 9 | . . . . . 2 4 . . . . 3 Secondary . | . . . . . . . . . . . . Self-Inflicted Damage 64 | . . . 4 . . . . . . . 60 Shots 2 | . . . . . . . . . . . 2 Rammed 1 | . . . 1 . . . . . . . . Targets Rammed 1 | . . . 1 . . . . . . . . Kicked . | . . . . . . . . . . . . Crushed . | . . . . . . . . . . . . Highest Temperature 223 | 18 177 45 20 54 104 215 178 20 20 40 223 Average Temperature 40 | 9 72 13 6 11 15 52 94 15 15 20 79 Received Heat Transfer 915 | . 120 105 231 72 90 108 . . . . 189 Siege Activations . | . . . . . . . . . . . . Martial Activations . | . . . . . . . . . . . . Shielding Activations . | . . . . . . . . . . . . Robots Disrupted . | . . . . . . . . . . . . Combat Hostiles . | . . . . . . . . . . . . Robots Corrupted . | . . . . . . . . . . . . Combat Hostiles . | . . . . . . . . . . . . Parts Fried . | . . . . . . . . . . . . Impact Corruptions . | . . . . . . . . . . . . Robots Melted 1 | . . . . 1 . . . . . . . Combat Hostiles . | . . . . . . . . . . . . Parts Melted 2 | . 2 . . . . . . . . . . Heat Transferred 1887 | 74 518 370 . 925 . . . . . . . Parts Sabotaged . | . . . . . . . . . . . . Parts Stolen . | . . . . . . . . . . . . Parts Stripped . | . . . . . . . . . . . . Power Chain Reactions . | . . . . . . . . . . . . Alert | -11 -10 -9 -9 -8 -8 -8 -8 -6 -6 -6 -6 ------- Run | Yrd Mat Mat Min Mat Sto Rec Scr Fac Was Fac Gar Maximum Alert Level 2 | . . . . . . . . . . . 2 Low Security (%) 97 | 100 100 100 100 100 100 100 . 100 100 100 58 Level 1 1 | . . . . . . . . . . . 35 Level 2 . | . . . . . . . . . . . 6 Level 3 . | . . . . . . . . . . . . Level 4 . | . . . . . . . . . . . . Level 5 . | . . . . . . . . . . . . High Security . | . . . . . . . . . . . . Max Security . | . . . . . . . . . . . . Peak Influence 415 | 5 90 60 150 126 125 55 . 22 . 40 415 Initial 40 | . . 16 . 25 40 . . . . . 2 Average 35 | . 26 7 53 37 55 6 . 1 . 5 170 Influence Increases 2319 | 5 120 113 489 490 296 186 . 55 . 67 498 Destroy 0b10 Robot/C 1440 | . 100 60 360 300 180 140 . . . 40 260 Destroy 0b10 Robot/NC 100 | 5 . . 15 25 20 10 . 20 . 5 . Destroy Leader 296 | . 20 20 60 84 72 . . 8 . 12 20 Allied During Kill 56 | . . . 23 8 . 15 . 8 . 2 . Successful Hack 48 | . . 18 . . 8 5 . . . 3 14 Disable Machine 75 | . . . . 30 15 15 . 15 . . . Anti-Garrison Action 100 | . . . . . . . . . . . 100 Destroy Structure 99 | . . . 1 43 1 1 . 4 . 5 44 Partial Spotted 15 | . . 15 . . . . . . . . . Lose Combat Pursuer 90 | . . . 30 . . . . . . . 60 Influence Decreases 1914 | 5 80 153 423 458 394 186 . 54 1 64 96 Entered New Map 125 | . . 24 . 41 58 . . . 1 . 1 Time Decay 1599 | 5 80 119 403 377 316 186 . 54 . 59 . Lost Part 95 | . . 10 . . 20 . . . . . 65 Lost Ally 95 | . . . 20 40 . . . . . 5 30 Squads Dispatched 8 | . 2 . . 2 2 . . 1 . 1 . Investigation 2 | . 1 . . . . . . . . 1 . Extermination 1 | . . . . . . . . 1 . . . Reinforcement 5 | . 1 . . 2 2 . . . . . . Assault . | . . . . . . . . . . . . Garrison . | . . . . . . . . . . . . Intercept . | . . . . . . . . . . . . Searches Triggered . | . . . . . . . . . . . . Construction Impeded . | . . . . . . . . . . . . Haulers Reinforced . | . . . . . . . . . . . . Active Scanning Responses . | . . . . . . . . . . . . Cargo Convoy Interrupts . | . . . . . . . . . . . . Stealth | -11 -10 -9 -9 -8 -8 -8 -8 -6 -6 -6 -6 --------- Run | Yrd Mat Mat Min Mat Sto Rec Scr Fac Was Fac Gar Distress Signals 4 | . . . . 2 2 . . . . . . Communications Jammed . | . . . . . . . . . . . . Distress Signals . | . . . . . . . . . . . . Times Spotted 124 | . 5 19 23 22 13 7 . 6 . 4 25 Peak Tracking Total 8 | . 3 6 4 4 5 2 . 2 . 4 8 Tactical Retreats 4 | . . . 2 . . . . . . . 2 Traps | -11 -10 -9 -9 -8 -8 -8 -8 -6 -6 -6 -6 ------- Run | Yrd Mat Mat Min Mat Sto Rec Scr Fac Was Fac Gar Traps Triggered 8 | . 1 . . . 1 . . 1 . 1 4 Indirectly . | . . . . . . . . . . . . Trap Hack Attempts 83 | . . . . . 83 . . . . . . Triggered . | . . . . . . . . . . . . Disarmed 1 | . . . . . 1 . . . . . . Reprogrammed 1 | . . . . . 1 . . . . . . Reused . | . . . . . . . . . . . . Traps Extracted . | . . . . . . . . . . . . Installed . | . . . . . . . . . . . . Triggered . | . . . . . . . . . . . . Machines | -11 -10 -9 -9 -8 -8 -8 -8 -6 -6 -6 -6 ---------- Run | Yrd Mat Mat Min Mat Sto Rec Scr Fac Was Fac Gar Machines Disabled 6 | . . . . 2 1 1 . 1 . . 1 Max in Single Turn 1 | . . . . 1 1 1 . 1 . . 1 Garrison Relay 1 | . . . . . . . . . . . 1 Machines Repaired . | . . . . . . . . . . . . Machines Dismantled . | . . . . . . . . . . . . Machines Sabotaged . | . . . . . . . . . . . . Overloaded Fab Kills . | . . . . . . . . . . . . Hacking | -11 -10 -9 -9 -8 -8 -8 -8 -6 -6 -6 -6 --------- Run | Yrd Mat Mat Min Mat Sto Rec Scr Fac Was Fac Gar Machines Accessed 32 | . . 2 . 4 5 5 9 1 . 5 1 Terminals 20 | . . 1 . 4 5 5 . . . 4 1 Fabricators . | . . . . . . . . . . . . Repair Stations . | . . . . . . . . . . . . Recycling Units . | . . . . . . . . . . . . Scanalyzers 2 | . . 1 . . . . . 1 . . . Garrison Access 1 | . . . . . . . . . . 1 . Total Hacks 85 | . . 3 . 6 6 13 45 2 . 8 2 Successful 58 | . . 3 . 1 3 1 45 2 . 2 1 Failed 27 | . . . . 5 3 12 . . . 6 1 Catastrophic 10 | . . . . . 3 4 . . . 2 1 Database Lockouts . | . . . . . . . . . . . . Manual 21 | . . . . 6 7 3 . . . 5 . Terminals 35 | . . 1 . 6 6 13 . . . 7 2 Fabricators . | . . . . . . . . . . . . Repair Stations . | . . . . . . . . . . . . Recycling Units . | . . . . . . . . . . . . Scanalyzers 4 | . . 2 . . . . . 2 . . . Garrison Access 1 | . . . . . . . . . . 1 . Terminal Hacks 52 | . . 1 . 1 3 1 45 . . . 1 Record 44 | . . . . . . . 44 . . . . Robot Analysis 2 | . . 1 . . 1 . . . . . . Prototype ID Bank 1 | . . . . . . 1 . . . . . Open Door 1 | . . . . . 1 . . . . . . Branch Access Points 2 | . . . . 1 1 . . . . . . Emergency Access Points 1 | . . . . . . . . . . . 1 Proto ID Catalog 1 | . . . . . . . 1 . . . . Fabricator Hacks . | . . . . . . . . . . . . Repair Station Hacks . | . . . . . . . . . . . . Recycling Unit Hacks . | . . . . . . . . . . . . Scanalyzer 4 | . . 2 . . . . . 2 . . . Insert Component 2 | . . 1 . . . . . 1 . . . Analyze 2 | . . 1 . . . . . 1 . . . Garrison Access Hacks 1 | . . . . . . . . . . 1 . Unlock Access 1 | . . . . . . . . . . 1 . Unauthorized Hacks 1 | . . . . . . . . . . 1 . Terminals 1 | . . . . . . . . . . 1 . Botnet 1 | . . . . . . . . . . 1 . Fabricators . | . . . . . . . . . . . . Repair Stations . | . . . . . . . . . . . . Recycling Units . | . . . . . . . . . . . . Scanalyzers . | . . . . . . . . . . . . Garrison Access . | . . . . . . . . . . . . Data Cores Recovered . | . . . . . . . . . . . . Used . | . . . . . . . . . . . . Hacking Detections 19 | . . 1 . 3 4 5 . . . 5 1 Full Trace Events 2 | . . . . . . . . . . 1 1 Feedback Events . | . . . . . . . . . . . . Feedback Blocked . | . . . . . . . . . . . . Robot Schematics Acquired . | . . . . . . . . . . . . Robots Built . | . . . . . . . . . . . . Authchips . | . . . . . . . . . . . . Time . | . . . . . . . . . . . . Total Robot Build Rating . | . . . . . . . . . . . . Part Schematics Acquired 2 | . . 1 . . . . . 1 . . . Parts Built . | . . . . . . . . . . . . Authchips . | . . . . . . . . . . . . Time . | . . . . . . . . . . . . Total Part Build Rating . | . . . . . . . . . . . . Parts Repaired . | . . . . . . . . . . . . Time . | . . . . . . . . . . . . Parts Recycled . | . . . . . . . . . . . . Recycled Matter . | . . . . . . . . . . . . Retrieved Matter . | . . . . . . . . . . . . Retrieved Components . | . . . . . . . . . . . . Parts Scanalyzed 2 | . . 1 . . . . . 1 . . . Part Schematics Acquired 2 | . . 1 . . . . . 1 . . . Parts Damaged . | . . . . . . . . . . . . Bothacking | -11 -10 -9 -9 -8 -8 -8 -8 -6 -6 -6 -6 ------------ Run | Yrd Mat Mat Min Mat Sto Rec Scr Fac Was Fac Gar Used RIF Installer . | . . . . . . . . . . . . Robots Hacked 1 | . . . . . 1 . . . . . . Non-combat 1 | . . . . . 1 . . . . . . Combat . | . . . . . . . . . . . . Robot Hacks Applied 1 | . . . . . 1 . . . . . . no_distress 1 | . . . . . 1 . . . . . . Relay Couplers Released 3 | . . . . . . . . . . . 3 Machine Destruction 3 | . . . . . . . . . . . 3 Fabnet Peak Effective % . | . . . . . . . . . . . . Robots Rewired 11 | . . . . . . 11 . . . . . Allies Hacked . | . . . . . . . . . . . . Hacks Repelled . | . . . . . . . . . . . . Allies | -11 -10 -9 -9 -8 -8 -8 -8 -6 -6 -6 -6 -------- Run | Yrd Mat Mat Min Mat Sto Rec Scr Fac Was Fac Gar Total Allies 14 | . . . 3 . . 11 . . . . . Largest Group 10 | . . . 3 2 . 10 10 10 10 10 3 Highest-Rated Group 196 | . . . 40 24 . 196 196 196 196 196 28 Highest-Rated Ally 34 | . . . 16 16 . 34 34 34 34 34 10 Total Orders . | . . . . . . . . . . . . Ally Attacks 74 | . . . 18 40 . 6 . 4 . 6 . Total Damage 909 | . . . 95 317 . 115 . 111 . 271 . Kills 13 | . . . 5 3 . 3 . 1 . 1 . Allies Corrupted . | . . . . . . . . . . . . Allies Melted . | . . . . . . . . . . . . Intel | -11 -10 -9 -9 -8 -8 -8 -8 -6 -6 -6 -6 ------- Run | Yrd Mat Mat Min Mat Sto Rec Scr Fac Was Fac Gar Active Infowar (turns) 12607 | 28 337 793 2823 1272 703 1967 2555 642 696 394 397 Optics 3620 | . . 776 2823 21 . . . . . . . Sensors 9613 | . . . 1399 1255 703 1967 2555 642 696 394 2 Terrain 5232 | . . . 549 620 . . 2339 642 696 383 3 Seismic 2137 | 28 337 762 616 . . . . . . . 394 Robot Analysis Total 2 | . . 1 . . 1 . . . . . . Derelict Logs Recovered 2 | . . . 2 . . . . . . . . Drone Launches . | . . . . . . . . . . . . Drone Recoveries . | . . . . . . . . . . . . Exploration | -11 -10 -9 -9 -8 -8 -8 -8 -6 -6 -6 -6 ------------- Run | Yrd Mat Mat Min Mat Sto Rec Scr Fac Was Fac Gar Turns Passed 12818 | 78 337 793 2823 1272 703 1967 2555 642 696 394 558 Spaces Moved 6606 | 55 257 398 1232 560 226 866 1680 363 297 240 432 Core 239 | 2 . . . . . . . . . . 237 Treads 16 | . . 10 . 2 . . . . . . 4 Legs 65 | . . 65 . . . . . . . . . Wheels 6249 | 53 257 323 1232 558 226 866 1680 363 297 240 154 Hover . | . . . . . . . . . . . . Flight 37 | . . . . . . . . . . . 37 Fastest Speed 35 | 50 100 100 175 175 190 135 135 135 150 150 35 Average Speed 157 | 98 100 173 175 179 204 207 135 149 150 150 89 Slowest Speed 480 | 100 100 190 190 480 210 210 135 150 150 150 323 Overloaded Moves . | . . . . . . . . . . . . Propulsion Burnouts . | . . . . . . . . . . . . Robots Hopped . | . . . . . . . . . . . . Potential Cave-ins . | . . . . . . . . . . . . Cave-ins Triggered 1 | . . . . . . . . . . . 1 Exploration Rate (%) 53 | 5 32 40 100 49 43 99 92 10 93 8 65 Regions Visited 11 Branch Regions 4 Pre-discovered Areas 2 | . . . 2 . . . . . . . . Known Exits Taken 5 | . . . . 1 1 1 1 . . 1 . Unknown Exits Taken 4 | 1 1 1 1 . . . . . . . . Scrap Searched 11 | . . . 4 . . . 7 . . . . Spaces Dug 12 | . . . 1 8 . . . . . . 3 Terrain Destroyed 103 | . . . 1 67 . 1 . . . . 34 Melee 4 | . . . 1 . . . . . . . 3 Projectile 7 | . . . . . . 1 . . . . 6 AOE 92 | . . . . 67 . . . . . . 25 Terrain Rammed 1 | . . . . . . . . . . . 1 Walls Destroyed . | . . . . . . . . . . . . Machines Disabled . | . . . . . . . . . . . . Actions | -11 -10 -9 -9 -8 -8 -8 -8 -6 -6 -6 -6 --------- Run | Yrd Mat Mat Min Mat Sto Rec Scr Fac Was Fac Gar Total 8567 | 70 301 470 1833 746 400 1004 1969 449 546 266 513 Wait 1312 | . 22 26 544 82 24 21 276 61 244 10 2 Move 6597 | 54 256 397 1231 559 225 865 1679 363 296 240 432 Hop . | . . . . . . . . . . . . Pick Up 61 | 6 2 9 12 10 6 1 5 6 1 1 2 Fast Attach 27 | 6 . 5 2 7 . . . 3 1 . 3 Attach 20 | 1 . 3 2 1 3 1 1 4 1 . 3 Detach 7 | . . 2 1 2 . . . . 1 . 1 Swap 54 | . 2 4 9 17 10 1 3 . . 2 6 Drop 60 | . 1 8 2 22 8 4 5 4 1 1 4 Fire 199 | 3 18 16 24 45 37 17 . 8 1 4 26 Melee 27 | . . . 5 1 4 . . . . . 17 Ram 2 | . . . 1 . . . . . . . 1 Kick . | . . . . . . . . . . . . Crush . | . . . . . . . . . . . . Escape Stasis 24 | . . . . . . . . . . 8 16 Rewire 94 | . . . . . . 94 . . . . . Trap 83 | . . . . . 83 . . . . . . Miscellaneous . | . . . . . . . . . . . . Route ------- -11/Scrapyard -10/Materials -9/Materials (discovered 2 exits: *Mat / [*Min]) -9/Mines (discovered 2 exits: *Mat x2) -8/Materials (discovered 3 exits: *Fac / *Sto x2) -8/Storage -8/Recycling (discovered 2 exits: *Fac / *Scr) -8/Scraptown (discovered 2 exits: *Fac x2) -6/Factory -6/Waste -6/Factory -6/Garrison (discovered 2 exits: [*Fac x2]) History --------- Turn | Location | Event 8 | -11/Scrapyard | Discovered new exit (range 15) 79 | -11/Scrapyard | Entered Materials 146 | -10/Materials | Discovered new exit (range 16) 303 | -10/Materials | Build established: Mutant 416 | -10/Materials | Entered another Materials area 416 | -9/Materials | Evolved 2 slots: Propulsion x1, Utility x1 1043 | -9/Materials | Discovered new exit (range 10) 1201 | -9/Materials | Discovered new exit (range 6) 1209 | -9/Materials | Entered Mines 1298 | -9/Mines | Received a Rocket Launcher from a helpful Derelict 1369 | -9/Mines | Learned location of Storage (-8) 1432 | -9/Mines | Found a damaged Exp. Sensor Array with a note attached 1435 | -9/Mines | Found Prototype Device 1508 | -9/Mines | Discovered new exit (range 9) 1932 | -9/Mines | Identified Exp. Sensor Array 2422 | -9/Mines | Assisted by bots powering up and referring to "LRC-V3" 2463 | -9/Mines | Discovered new exit (range 9) 3789 | -9/Mines | Build established: Scavenger-Mutant 4032 | -9/Mines | Entered Materials 4032 | -8/Materials | Accompanied by 2 allies 4032 | -8/Materials | Evolved 2 slots: Propulsion x1, Utility x1 4247 | -8/Materials | Discovered new exit (range 5) 4252 | -8/Materials | Identified exit to Storage 4341 | -8/Materials | Build established: Scavenger-Skirmisher 4476 | -8/Materials | Discovered new exit (range 12) 4494 | -8/Materials | Identified exit to Factory 4954 | -8/Materials | Build established: Scavenger-Mutant 5304 | -8/Materials | Entered Storage 5700 | -8/Storage | Identified exit to Recycling 6000 | -8/Storage | Used back door to open Recycling access 6007 | -8/Storage | Entered Recycling 6166 | -8/Recycling | Scanned before Scraplab entrance 6195 | -8/Recycling | Build established: Mutant 6769 | -8/Recycling | Discovered new exit (range 16) 7180 | -8/Recycling | Build established: Commander-Mutant 7936 | -8/Recycling | Entered Scraplab 7948 | -8/Recycling | Discovered new exit (range 4) 7950 | -8/Recycling | Identified exit to Scraptown 7974 | -8/Recycling | Entered Scraptown 7974 | -8/Scraptown | Accompanied by 10 allies 8250 | -8/Scraptown | Discovered new exit (range 11) 8289 | -8/Scraptown | Identified exit to Factory 8446 | -8/Scraptown | Visited Spacefarers 8519 | -8/Scraptown | Visited Assassins FH 8736 | -8/Scraptown | Visited Cave Peace 8755 | -8/Scraptown | Visited TADAMA 8991 | -8/Scraptown | Visited Cyclists 9045 | -8/Scraptown | Visited Awakened 9115 | -8/Scraptown | Visited UFD Registry 9115 | -8/Scraptown | Registered with UFD as "Kinetisourcer" 9146 | -8/Scraptown | Visited SPCMW 9241 | -8/Scraptown | Entered Cyclist Reading Room 9384 | -8/Scraptown | Visited Modified Component R&D 9441 | -8/Scraptown | Visited Science Guys 9497 | -8/Scraptown | Visited Derelict Rescue Squad 9508 | -8/Scraptown | Found DRS Beacon 9546 | -8/Scraptown | Visited Chapter 10 9619 | -8/Scraptown | Visited Scrap Suit Storage 9679 | -8/Scraptown | Visited Junk Cannon Lab 10183 | -8/Scraptown | Visited LU-1G1's Boring Crew 10266 | -8/Scraptown | Visited DA-N13 Charitable Foundation 10283 | -8/Scraptown | Found DCF Scrap (30 items) 10406 | -8/Scraptown | Met Optimus 10406 | -8/Scraptown | Accepted into 0bPrime 10507 | -8/Scraptown | Discovered exit to Factory (range 5) 10529 | -8/Scraptown | Entered Factory 10529 | -6/Factory | Accompanied by 10 allies 10529 | -6/Factory | Evolved 4 slots: Propulsion x1, Utility x2, Weapon x1 10820 | -6/Factory | Discovered new exit (range 17) 10842 | -6/Factory | Build established: Commander-Skirmisher 11020 | -6/Factory | Identified exit to Factory 11171 | -6/Factory | Sucked down chute 11171 | -6/Factory | Entered Waste 11171 | -6/Waste | The area was eerily silent 11286 | -6/Waste | 10 allies followed down the chute 11774 | -6/Waste | Discovered new exit (range 14) 11797 | -6/Waste | Identified exit to Factory 11867 | -6/Waste | Entered Factory 11867 | -6/Factory | Accompanied by 10 allies 12081 | -6/Factory | Lost 7 allies 12261 | -6/Factory | Identified exit to Garrison 12261 | -6/Factory | Entered Garrison 12261 | -6/Garrison | Accompanied by 3 allies 12303 | -6/Garrison | Crushed by falling debris 12357 | -6/Garrison | Triggered checkpoint 12390 | -6/Garrison | Garrison Relay disabled 12589 | -6/Garrison | Triggered checkpoint 12640 | -6/Garrison | Lost 3 parts (1p1n1u) 12651 | -6/Garrison | Triggered checkpoint 12655 | -6/Garrison | Build established: Tank 12659 | -6/Garrison | Destroyed 9 combat bots 12665 | -6/Garrison | Released all parts (10) 12710 | -6/Garrison | Lost 3 allies 12716 | -6/Garrison | Discovered new exit (range 10) 12727 | -6/Garrison | Triggered checkpoint 12767 | -6/Garrison | Core integrity fell below 50% 12803 | -6/Garrison | Triggered checkpoint 12811 | -6/Garrison | Core integrity fell below 20% 12817 | -6/Garrison | Discovered new exit (range 15) 12819 | -6/Garrison | Destroyed by S-27 Virus with Autogun Last Messages --------------- 12727_ Beams of light sweep through the air. An alarm sounds. 12730_ Slammed into Garrison Relay. 12733_ Critical hit (Burn: +37). 12744_ /BQDN>F#LCWQ%OVX624QZHH7E4IRE6NB 12763_ Acquired 60 matter. 12767_ Acquired Axe. 12768_ System corrupted: Heat flow error (+224). 12769_ Destroyed VTOL Module. 12780_ S-27 Virus destroyed. 12788_ Acquired 25 matter. 12789_ 1&29KUAPH|P#=G&B|6WE8RE|U1DFPBN1EUQ 12789_ Acquired VTOL Module. 12790_ The unstable cave ceiling collapses. 12794_ Acquired 19 matter. 12803_ Beams of light sweep through the air. An alarm sounds. 12803_ VTOL Module destroyed. 12806_ System corrupted: Axe rejected. 12817_ EXIT=FOUND Map ----- +----------------------------------------------------+ | #]!! = # ############??????????????????????? | | %=! % #??????????????????????? | | #??????????????????????? | | +??????????????????????? | | # ##++#"##+#### #??????????????????????? | | # ## #???###?????# #??????????????????????? | | ## #######???????????# #??????????????????????? | | ?# #?????????????????# #??????????????????????? | | ?+ #?????????????????# ###+##??#######????????? | | ?# #?????????????????# ## #??#"""""#????????? | | ## #?????????????????# ## ##### ###???????? | | #?????????????????+ / #???????? | | #?????????????????+ #???????? | | ##+##?????????????????# g################???????? | | ??????????????????????# gg#??????????????????????? | | ??????????????????????#sss#??????????????????????? | | ??????????????????????# #??????????????????????? | | ??????????????????????# #??????????????????????? | | ??????????????????????# #??????????????????????? | | ??????????????????????# #??????????????????????? | | ??????????????????????# #??????????????????????? | | ??????????????????????# #??????????????????????? | | ??????????????????????# #??????????????????????? | | ??????????????????????# #??????????????????????? | | ??????????????????????# #??????????????????????? | | ??????????????????????# @#??????????????????????? | | ??????????????????????# #??????????????????????? | | ??????????????????????# #??????????????????????? | | ??????????????????????# #??????????????????????? | | ??????????????????????# #??????????????????????? | | ??????????????????????# #??????????????????????? | | ??????????????????????# #??????????????????????? | | ??????????????????????# #??????????????????????? | | ??????????????????????# ??????????????????????? | | ??????????????????????#